fUSD/lending_fUSD_20250204
["ID","MTS","AMOUNT","RATE_DAILY","PERIOD"]
[351600935,1738656634541,-1073.4,8.659e-05,2]
[351600936,1738656634551,-500.0,8.659e-05,2]
[351600937,1738656634561,-500.0,8.659e-05,2]
[351600938,1738656634570,-500.0,8.659e-05,2]
[351600939,1738656634580,-500.0,8.659e-05,2]
[351600940,1738656634590,-117.38488931,8.659e-05,2]
[351600941,1738656634604,-382.61511069,8.659e-05,2]
[351600942,1738656634614,-500.0,8.659e-05,2]
[351600943,1738656634624,-500.0,8.659e-05,2]
[351600944,1738656634633,-500.0,8.659e-05,2]
[351600945,1738656634643,-845.3,8.659e-05,2]
[351600946,1738656634652,-1290.77,8.659e-05,2]
[351600947,1738656634662,-500.0,8.659e-05,2]
[351600948,1738656634672,-618.69201453,8.659e-05,2]
[351600949,1738656634682,-831.36,8.659e-05,2]
[351600950,1738656634691,-519.75,8.659e-05,2]
[351600951,1738656634701,-1157.57,8.659e-05,2]
[351600952,1738656634714,-303.07958134,8.659e-05,2]
[351600953,1738656634723,-515.9,8.659e-05,2]
[351600954,1738656634733,-519.85,8.659e-05,2]
[351600955,1738656634746,-500.0,8.659e-05,2]
[351600956,1738656634755,-500.0,8.659e-05,2]
[351600957,1738656634765,-1132.16,8.659e-05,2]
[351600958,1738656634775,-500.0,8.659e-05,2]
[351600959,1738656634784,-838.15,8.659e-05,2]
[351600960,1738656634794,-1453.23,8.659e-05,2]
[351600961,1738656634805,-500.0,8.659e-05,2]
[351600962,1738656634815,-1330.91,8.659e-05,2]
[351600963,1738656634824,-500.0,8.659e-05,2]
[351600964,1738656634835,-500.0,8.659e-05,2]
[351600965,1738656634844,-695.17,8.659e-05,2]
[351600966,1738656634854,-1953.72,8.659e-05,2]
[351600967,1738656634865,-500.0,8.659e-05,2]
[351600968,1738656634875,-490.32987744,8.659e-05,2]
[351600969,1738656634911,-9.67012256,8.659e-05,2]
[351600970,1738656634922,-481.57987744,8.659e-05,2]
[351600971,1738656634934,-18.42012256,8.659e-05,2]
[351600972,1738656634944,-500.0,8.659e-05,2]
[351600973,1738656634954,-806.2,8.659e-05,2]
[351600974,1738656634968,-500.0,8.659e-05,2]
[351600975,1738656634979,-500.0,8.659e-05,2]
[351600976,1738656634989,-936.54,8.659e-05,2]
[351600977,1738656635000,-500.0,8.659e-05,2]
[351600978,1738656635010,-508.18,8.659e-05,2]
[351600979,1738656635021,-1233.56,8.659e-05,2]
[351600980,1738656635031,-500.0,8.659e-05,2]
[351600981,1738656635042,-500.0,8.659e-05,2]
[351600982,1738656635052,-1470.56,8.659e-05,2]
[351600983,1738656635063,-500.0,8.659e-05,2]
[351600984,1738656635073,-1391.68,8.659e-05,2]
[351600985,1738656635083,-500.0,8.659e-05,2]
[351600986,1738656635093,-500.0,8.659e-05,2]
[351600987,1738656635103,-588.96,8.659e-05,2]
[351600988,1738656635112,-3277.16,8.659e-05,2]
[351600989,1738656635122,-2812.81,8.659e-05,2]
[351600990,1738656635132,-1335.88,8.659e-05,2]
[351600991,1738656635142,-500.0,8.659e-05,2]
[351600992,1738656635151,-501.16430855,8.659e-05,2]
[351600993,1738656635161,-82.0655487,8.659e-05,2]
[351600994,1738656635174,-907.0844513,8.659e-05,2]
[351600995,1738656635183,-503.78646012,8.659e-05,2]
[351600996,1738656635193,-500.0,8.659e-05,2]
[351600997,1738656635203,-500.0,8.659e-05,2]
[351600998,1738656635217,-677.12908863,8.659e-05,2]
[351600999,1738656635263,-306.85091137,8.659e-05,2]
[351601000,1738656635272,-500.0,8.659e-05,2]
[351601001,1738656635282,-1262.43637721,8.659e-05,2]
[351601007,1738656637948,-803.23,8.658e-05,2]
[351601008,1738656637961,-1776.10362279,8.659e-05,2]
[351601009,1738656637974,-1477.65,8.659e-05,2]
[351601010,1738656637986,-500.0,8.659e-05,2]
[351601011,1738656637999,-1464.69,8.659e-05,2]
[351601012,1738656638011,-500.0,8.659e-05,2]
[351601013,1738656638023,-500.0,8.659e-05,2]
[351601014,1738656638035,-1473.47,8.659e-05,2]
[351601015,1738656638047,-500.0,8.659e-05,2]
[351601016,1738656638059,-500.0,8.659e-05,2]
[351601017,1738656638070,-2182.66,8.659e-05,2]
[351601018,1738656638081,-644.76,8.659e-05,2]
[351601019,1738656638094,-2382.09,8.659e-05,2]
[351601020,1738656638105,-581.68,8.659e-05,2]
[351601021,1738656638117,-500.0,8.659e-05,2]
[351601022,1738656638129,-500.0,8.659e-05,2]
[351601023,1738656638140,-672.48,8.659e-05,2]
[351601024,1738656638152,-2305.7,8.659e-05,2]
[351601025,1738656638164,-526.99,8.659e-05,2]
[351601026,1738656638175,-500.0,8.659e-05,2]
[351601027,1738656638187,-1077.49,8.659e-05,2]
[351601028,1738656638198,-185.94921484,8.659e-05,2]
[351601029,1738656638215,-314.05078516,8.659e-05,2]
[351601030,1738656638230,-500.0,8.659e-05,2]
[351601031,1738656638242,-1750.22,8.659e-05,2]
[351601032,1738656638255,-500.0,8.659e-05,2]
[351601033,1738656638267,-2146.84,8.659e-05,2]
[351601034,1738656638279,-1143.71,8.659e-05,2]
[351601035,1738656638291,-500.0,8.659e-05,2]
[351601036,1738656638303,-500.0,8.659e-05,2]
[351601037,1738656638315,-500.0,8.659e-05,2]
[351601038,1738656638326,-2072.53,8.659e-05,2]
[351601040,1738656638338,-772.43,8.659e-05,2]
[351601042,1738656638349,-500.0,8.659e-05,2]
[351601044,1738656638360,-1405.09,8.659e-05,2]
[351601046,1738656638373,-1215.29,8.659e-05,2]
[351601048,1738656638384,-1328.05,8.659e-05,2]
[351601050,1738656638397,-3447.17,8.659e-05,2]
[351601053,1738656638408,-500.0,8.659e-05,2]
[351601055,1738656638419,-1935.97,8.659e-05,2]
[351601057,1738656638431,-1086.69,8.659e-05,2]
[351601059,1738656638443,-500.0,8.659e-05,2]
[351601061,1738656638455,-500.0,8.659e-05,2]
[351601062,1738656638472,-1051.75,8.659e-05,2]
[351601064,1738656638483,-500.0,8.659e-05,2]
[351601067,1738656638495,-500.0,8.659e-05,2]
[351601069,1738656638506,-1331.76,8.659e-05,2]
[351601071,1738656638518,-2419.66,8.659e-05,2]
[351601073,1738656638532,-516.07,8.659e-05,2]
[351601075,1738656638545,-500.0,8.659e-05,2]
[351601077,1738656638557,-1408.53,8.659e-05,2]
[351601080,1738656638569,-500.0,8.659e-05,2]
[351601082,1738656638581,-500.0,8.659e-05,2]
[351601084,1738656638593,-1013.31,8.659e-05,2]
[351601086,1738656638604,-780.8,8.659e-05,2]
[351601088,1738656638615,-536.18,8.659e-05,2]
[351601090,1738656638626,-616.71,8.659e-05,2]
[351601092,1738656638638,-565.59,8.659e-05,2]
[351601094,1738656638650,-1839.53,8.659e-05,2]
[351601097,1738656638661,-1936.43,8.659e-05,2]
[351601099,1738656638672,-1286.19,8.659e-05,2]
[351601101,1738656638683,-2413.89,8.659e-05,2]
[351601103,1738656638693,-500.0,8.659e-05,2]
[351601105,1738656638705,-514.5,8.659e-05,2]
[351601107,1738656638720,-500.0,8.659e-05,2]
[351601109,1738656638732,-500.0,8.659e-05,2]
[351601111,1738656638747,-811.63653274,8.659e-05,2]
[351601114,1738656638758,-500.0,8.659e-05,2]
[351601116,1738656638770,-504.55000133,8.659e-05,2]
[351601118,1738656638783,-1381.36,8.659e-05,2]
[351601120,1738656638794,-500.0,8.659e-05,2]
[351601122,1738656638806,-2132.14,8.659e-05,2]
[351601124,1738656638817,-500.0,8.659e-05,2]
[351601126,1738656638829,-2240.87,8.659e-05,2]
[351601129,1738656638841,-1613.81,8.659e-05,2]
[351601131,1738656638852,-500.0,8.659e-05,2]
[351601133,1738656638863,-2140.81,8.659e-05,2]
[351601135,1738656638874,-3188.51,8.659e-05,2]
[351601137,1738656638884,-1857.44,8.659e-05,2]
[351601139,1738656638896,-923.63,8.659e-05,2]
[351601141,1738656638907,-5008.65,8.659e-05,2]
[351601143,1738656638919,-2344.79,8.659e-05,2]
[351601146,1738656638929,-500.0,8.659e-05,2]
[351601148,1738656638940,-500.0,8.659e-05,2]
[351601150,1738656638952,-3322.08,8.659e-05,2]
[351601152,1738656638965,-616.22,8.659e-05,2]
[351601154,1738656638976,-500.0,8.659e-05,2]
[351601156,1738656638988,-1791.35,8.659e-05,2]
[351601159,1738656639000,-2190.97,8.659e-05,2]
[351601161,1738656639011,-1412.16,8.659e-05,2]
[351601163,1738656639023,-608.79,8.659e-05,2]
[351601165,1738656639034,-882.73,8.659e-05,2]
[351601167,1738656639044,-639.64,8.659e-05,2]
[351601169,1738656639056,-1970.76,8.659e-05,2]
[351601171,1738656639067,-2040.26,8.659e-05,2]
[351601174,1738656639078,-4029.65,8.659e-05,2]
[351601176,1738656639089,-500.0,8.659e-05,2]
[351601178,1738656639102,-500.0,8.659e-05,2]
[351601180,1738656639113,-500.0,8.659e-05,2]
[351601182,1738656639126,-500.0,8.659e-05,2]
[351601184,1738656639137,-542.01,8.659e-05,2]
[351601187,1738656639149,-500.0,8.659e-05,2]
[351601189,1738656639161,-834.33,8.659e-05,2]
[351601191,1738656639172,-1648.38,8.659e-05,2]
[351601193,1738656639184,-500.0,8.659e-05,2]
[351601195,1738656639196,-1670.62,8.659e-05,2]
[351601198,1738656639207,-2016.87,8.659e-05,2]
[351601200,1738656639220,-500.0,8.659e-05,2]
[351601202,1738656639232,-1347.36,8.659e-05,2]
[351601204,1738656639243,-658.75,8.659e-05,2]
[351601206,1738656639254,-1123.11,8.659e-05,2]
[351601208,1738656639266,-500.0,8.659e-05,2]
[351601211,1738656639278,-528.18,8.659e-05,2]
[351601213,1738656639289,-1850.73,8.659e-05,2]
[351601215,1738656639301,-2397.96,8.659e-05,2]
[351601217,1738656639313,-500.0,8.659e-05,2]
[351601219,1738656639325,-880.73,8.659e-05,2]
[351601222,1738656639336,-1917.75,8.659e-05,2]
[351601224,1738656639347,-500.0,8.659e-05,2]
[351601226,1738656639357,-500.0,8.659e-05,2]
[351601228,1738656639368,-1214.77,8.659e-05,2]
[351601230,1738656639379,-2260.74,8.659e-05,2]
[351601232,1738656639389,-1675.51,8.659e-05,2]
[351601234,1738656639400,-733.08,8.659e-05,2]
[351601236,1738656639411,-500.0,8.659e-05,2]
[351601238,1738656639422,-500.0,8.659e-05,2]
[351601240,1738656639433,-500.0,8.659e-05,2]
[351601243,1738656639444,-1496.14,8.659e-05,2]
[351601245,1738656639455,-927.07,8.659e-05,2]
[351601247,1738656639469,-504.55794753,8.659e-05,2]
[351601249,1738656639481,-2339.99,8.659e-05,2]
[351601251,1738656639492,-500.0,8.659e-05,2]
[351601253,1738656639503,-500.0,8.659e-05,2]
[351601255,1738656639515,-682.0,8.659e-05,2]
[351601257,1738656639526,-1186.95,8.659e-05,2]
[351601260,1738656639538,-500.0,8.659e-05,2]
[351601262,1738656639549,-1828.03,8.659e-05,2]
[351601264,1738656639561,-500.0,8.659e-05,2]
[351601266,1738656639573,-2092.7,8.659e-05,2]
[351601268,1738656639584,-828.43,8.659e-05,2]
[351601271,1738656639595,-1761.88,8.659e-05,2]
[351601273,1738656639606,-3165.85,8.659e-05,2]
[351601275,1738656639617,-500.0,8.659e-05,2]
[351601277,1738656639628,-932.77,8.659e-05,2]
[351601279,1738656639640,-772.77,8.659e-05,2]
[351601281,1738656639651,-804.16,8.659e-05,2]
[351601283,1738656639662,-500.0,8.659e-05,2]
[351601285,1738656639673,-500.0,8.659e-05,2]
[351601288,1738656639684,-500.0,8.659e-05,2]
[351601290,1738656639695,-500.0,8.659e-05,2]
[351601292,1738656639707,-556.36,8.659e-05,2]
[351601294,1738656639722,-2350.61,8.659e-05,2]
[351601296,1738656639734,-500.0,8.659e-05,2]
[351601298,1738656639745,-500.0,8.659e-05,2]
[351601300,1738656639758,-1587.78,8.659e-05,2]
[351601303,1738656639769,-500.0,8.659e-05,2]
[351601307,1738656639779,-2005.81,8.659e-05,2]
[351601310,1738656639791,-500.0,8.659e-05,2]
[351601313,1738656639801,-833.33,8.659e-05,2]
[351601317,1738656639814,-696.53,8.659e-05,2]
[351601320,1738656639826,-500.0,8.66e-05,2]
[351601323,1738656639837,-500.0,8.66e-05,2]
[351601327,1738656639847,-503.61936873,8.66e-05,2]
[351601330,1738656639858,-500.0,8.66e-05,2]
[351601333,1738656639870,-500.0,8.66e-05,2]
[351601336,1738656639881,-501.74987338,8.66e-05,2]
[351601339,1738656639893,-500.0,8.66e-05,2]
[351601342,1738656639905,-500.0,8.66e-05,2]
[351601345,1738656639916,-500.0,8.66e-05,2]
[351601348,1738656639928,-500.0,8.66e-05,2]
[351601352,1738656639940,-500.0,8.66e-05,2]
[351601356,1738656639950,-500.0,8.66e-05,2]
[351601358,1738656639962,-500.0,8.66e-05,2]
[351601360,1738656639973,-500.0,8.66e-05,2]
[351601362,1738656639985,-500.0,8.66e-05,2]
[351601364,1738656639996,-774.73,8.66e-05,2]
[351601366,1738656640007,-500.0,8.66e-05,2]
[351601368,1738656640019,-500.0,8.66e-05,2]
[351601370,1738656640030,-1007.62,8.66e-05,2]
[351601372,1738656640041,-731.58,8.66e-05,2]
[351601374,1738656640052,-500.0,8.66e-05,2]
[351601377,1738656640063,-500.0,8.66e-05,2]
[351601379,1738656640074,-500.0,8.66e-05,2]
[351601381,1738656640085,-500.0,8.66e-05,2]
[351601383,1738656640098,-500.0,8.66e-05,2]
[351601385,1738656640109,-247.17294009,8.66e-05,2]
[351601387,1738656640120,-504.21261056,8.66e-05,2]
[351601389,1738656640131,-785.41,8.66e-05,2]
[351601391,1738656640143,-500.0,8.66e-05,2]
[351601393,1738656640153,-660.85,8.66e-05,2]
[351601395,1738656640164,-500.0,8.66e-05,2]
[351601398,1738656640174,-774.73,8.66e-05,2]
[351601400,1738656640185,-500.0,8.66e-05,2]
[351601402,1738656640196,-1408.39,8.66e-05,2]
[351601404,1738656640207,-393.23644244,8.66e-05,2]
[351601407,1738656640225,-106.76355756,8.66e-05,2]
[351601409,1738656640236,-500.0,8.66e-05,2]
[351601411,1738656640247,-500.0,8.66e-05,2]
[351601413,1738656640258,-500.0,8.66e-05,2]
[351601415,1738656640268,-76.33457944,8.66e-05,2]
[351601418,1738656640281,-831.49631465,8.66e-05,2]
[351601420,1738656640294,-449.9014292,8.66e-05,2]
[351601422,1738656640307,-191.64767671,8.66e-05,2]
[351601424,1738656640317,-505.98748073,8.66e-05,2]
[351601426,1738656640327,-500.0,8.66e-05,2]
[351601428,1738656640337,-92.46484296,8.66e-05,2]
[351601431,1738656640351,-480.09694908,8.66e-05,2]
[351601433,1738656640361,-490.50095341,8.66e-05,2]
[351601435,1738656640373,-500.0,8.66e-05,2]
[351601437,1738656640384,-500.0,8.66e-05,2]
[351601439,1738656640396,-500.8349343,8.66e-05,2]
[351601441,1738656640407,-507.06162075,8.66e-05,2]
[351601492,1738656640899,-400.07632571,8.66e-05,2]
[351601497,1738656640942,-99.92367429,8.66e-05,2]
[351601500,1738656640964,-500.0,8.66e-05,2]
[351601502,1738656640979,-500.0,8.66e-05,2]
[351601504,1738656640988,-500.0,8.66e-05,2]
[351601506,1738656640997,-1002.23,8.66e-05,2]
[351601508,1738656641007,-500.0,8.66e-05,2]
[351601510,1738656641017,-500.0,8.66e-05,2]
[351601512,1738656641027,-500.0,8.66e-05,2]
[351601514,1738656641037,-500.2778341,8.66e-05,2]
[351601516,1738656641046,-500.0,8.66e-05,2]
[351601518,1738656641057,-500.0,8.66e-05,2]
[351601520,1738656641067,-500.0,8.66e-05,2]
[351601522,1738656641077,-500.0,8.66e-05,2]
[351601524,1738656641087,-500.0,8.66e-05,2]
[351601526,1738656641097,-500.0,8.66e-05,2]
[351601528,1738656641106,-163.72604954,8.66e-05,2]
[351601532,1738656641136,-476.87395046,8.66e-05,2]
[351601534,1738656641146,-1647.0,8.66e-05,2]
[351601536,1738656641157,-2292.09,8.66e-05,2]
[351601537,1738656641167,-500.0,8.66e-05,2]
[351601538,1738656641176,-741.87,8.66e-05,2]
[351601539,1738656641185,-500.0,8.66e-05,2]
[351601540,1738656641194,-434.96602972,8.66e-05,2]
[351601541,1738656641203,-589.99,8.66e-05,2]
[351601542,1738656641213,-1049.63,8.66e-05,2]
[351601543,1738656641223,-787.53,8.66e-05,2]
[351601544,1738656641232,-500.0,8.66e-05,2]
[351601545,1738656641241,-44.19509475,8.66e-05,2]
[351601546,1738656641262,-634.89490525,8.66e-05,2]
[351601547,1738656641271,-500.0,8.66e-05,2]
[351601548,1738656641280,-500.0,8.66e-05,2]
[351601549,1738656641289,-500.0,8.66e-05,2]
[351601551,1738656641299,-500.0,8.66e-05,2]
[351601553,1738656641309,-857.2,8.66e-05,2]
[351601555,1738656641318,-500.0,8.66e-05,2]
[351601556,1738656641328,-734.03,8.66e-05,2]
[351601558,1738656641337,-500.0,8.66e-05,2]
[351601560,1738656641346,-500.0,8.66e-05,2]
[351601562,1738656641356,-786.4,8.66e-05,2]
[351601564,1738656641366,-568.42,8.66e-05,2]
[351601566,1738656641376,-500.0,8.66e-05,2]
[351601568,1738656641386,-348.6893094,8.66e-05,2]
[351601570,1738656641396,-579.63336416,8.66e-05,2]
[351601572,1738656641406,-2183.15,8.66e-05,2]
[351601574,1738656641415,-1588.31,8.66e-05,2]
[351601576,1738656641424,-1780.07,8.66e-05,2]
[351601578,1738656641433,-657.89,8.66e-05,2]
[351601580,1738656641443,-500.0,8.66e-05,2]
[351601582,1738656641453,-1225.52,8.66e-05,2]
[351601584,1738656641465,-500.0,8.66e-05,2]
[351601585,1738656641475,-561.33,8.66e-05,2]
[351601587,1738656641484,-1589.44,8.66e-05,2]
[351601589,1738656641493,-500.0,8.66e-05,2]
[351601591,1738656641502,-500.0,8.66e-05,2]
[351601593,1738656641511,-1104.87,8.66e-05,2]
[351601595,1738656641520,-500.0,8.66e-05,2]
[351601597,1738656641530,-901.58,8.66e-05,2]
[351601599,1738656641539,-1236.9,8.66e-05,2]
[351601601,1738656641548,-500.0,8.66e-05,2]
[351601603,1738656641557,-602.44,8.66e-05,2]
[351601605,1738656641567,-500.0,8.66e-05,2]
[351601607,1738656641577,-500.0,8.66e-05,2]
[351601609,1738656641586,-676.53,8.66e-05,2]
[351601611,1738656641596,-712.14,8.66e-05,2]
[351601613,1738656641605,-500.0,8.66e-05,2]
[351601615,1738656641614,-513.36,8.66e-05,2]
[351601617,1738656641624,-1103.3,8.66e-05,2]
[351601619,1738656641634,-1061.81,8.66e-05,2]
[351601621,1738656641644,-500.0,8.66e-05,2]
[351601623,1738656641653,-500.0,8.66e-05,2]
[351601625,1738656641663,-789.59,8.66e-05,2]
[351601627,1738656641673,-500.0,8.66e-05,2]
[351601629,1738656641683,-500.0,8.66e-05,2]
[351601631,1738656641692,-180.62492692,8.66e-05,2]
[351601633,1738656641703,-500.0,8.66e-05,2]
[351601635,1738656641713,-1082.27,8.66e-05,2]
[351601637,1738656641723,-1253.81,8.66e-05,2]
[351601639,1738656641732,-561.65,8.66e-05,2]
[351601641,1738656641742,-150.40815888,8.66e-05,2]
[351601643,1738656641753,-1068.89,8.66e-05,2]
[351601644,1738656641761,-500.0,8.66e-05,2]
[351601646,1738656641770,-500.0,8.66e-05,2]
[351601648,1738656641780,-500.0,8.66e-05,2]
[351601650,1738656641790,-588.51,8.66e-05,2]
[351601652,1738656641799,-769.52,8.66e-05,2]
[351601654,1738656641809,-500.0,8.66e-05,2]
[351601656,1738656641818,-515.68,8.66e-05,2]
[351601658,1738656641827,-500.0,8.66e-05,2]
[351601660,1738656641836,-500.0,8.66e-05,2]
[351601662,1738656641845,-1152.51,8.66e-05,2]
[351601664,1738656641854,-880.69,8.66e-05,2]
[351601666,1738656641862,-500.0,8.66e-05,2]
[351601668,1738656641872,-575.79,8.66e-05,2]
[351601670,1738656641881,-1107.86,8.66e-05,2]
[351601672,1738656641891,-500.0,8.66e-05,2]
[351601674,1738656641901,-500.0,8.66e-05,2]
[351601676,1738656641910,-1369.85,8.66e-05,2]
[351601678,1738656641919,-500.0,8.66e-05,2]
[351601680,1738656641929,-500.0,8.66e-05,2]
[351601682,1738656641938,-1338.7,8.66e-05,2]
[351601684,1738656641947,-1235.8,8.66e-05,2]
[351601686,1738656641956,-500.0,8.66e-05,2]
[351601688,1738656641967,-1138.51,8.66e-05,2]
[351601690,1738656641977,-794.22,8.66e-05,2]
[351601692,1738656641987,-500.0,8.66e-05,2]
[351601694,1738656641997,-1617.47,8.66e-05,2]
[351601696,1738656642007,-656.02,8.66e-05,2]
[351601698,1738656642017,-1871.99,8.66e-05,2]
[351601700,1738656642026,-500.0,8.66e-05,2]
[351601702,1738656642036,-746.73,8.66e-05,2]
[351601704,1738656642046,-636.38,8.66e-05,2]
[351601706,1738656642055,-501.25004958,8.66e-05,2]
[351601708,1738656642065,-500.0,8.66e-05,2]
[351601710,1738656642074,-1224.08,8.66e-05,2]
[351601712,1738656642083,-500.0,8.66e-05,2]
[351601714,1738656642094,-500.0,8.66e-05,2]
[351601716,1738656642103,-659.44,8.66e-05,2]
[351601718,1738656642113,-500.0,8.66e-05,2]
[351601720,1738656642122,-1059.59,8.66e-05,2]
[351601722,1738656642131,-500.0,8.66e-05,2]
[351601724,1738656642140,-794.68,8.66e-05,2]
[351601726,1738656642149,-500.0,8.66e-05,2]
[351601728,1738656642159,-500.0,8.66e-05,2]
[351601730,1738656642168,-1699.93,8.66e-05,2]
[351601732,1738656642177,-587.35,8.66e-05,2]
[351601734,1738656642186,-500.0,8.66e-05,2]
[351601736,1738656642195,-731.45,8.66e-05,2]
[351601738,1738656642205,-748.68,8.66e-05,2]
[351601740,1738656642216,-500.0,8.66e-05,2]
[351601742,1738656642225,-1935.23,8.66e-05,2]
[351601744,1738656642234,-1672.97,8.66e-05,2]
[351601746,1738656642243,-500.0,8.66e-05,2]
[351601748,1738656642252,-500.0,8.66e-05,2]
[351601750,1738656642261,-500.0,8.66e-05,2]
[351601752,1738656642270,-500.0,8.66e-05,2]
[351601754,1738656642279,-500.0,8.66e-05,2]
[351601756,1738656642288,-1448.49,8.66e-05,2]
[351601758,1738656642297,-500.0,8.66e-05,2]
[351601760,1738656642306,-836.57,8.66e-05,2]
[351601762,1738656642314,-552.06,8.66e-05,2]
[351601764,1738656642324,-500.0,8.66e-05,2]
[351601766,1738656642333,-574.7,8.66e-05,2]
[351601768,1738656642342,-1026.79,8.66e-05,2]
[351601770,1738656642352,-500.0,8.66e-05,2]
[351601772,1738656642361,-898.63,8.66e-05,2]
[351601773,1738656642370,-500.0,8.66e-05,2]
[351601775,1738656642380,-500.0,8.66e-05,2]
[351601777,1738656642389,-500.0,8.66e-05,2]
[351601780,1738656642399,-1035.25,8.66e-05,2]
[351601781,1738656642409,-500.0,8.66e-05,2]
[351601783,1738656642419,-1287.44,8.66e-05,2]
[351601786,1738656642429,-500.0,8.66e-05,2]
[351601788,1738656642439,-1134.65,8.66e-05,2]
[351601790,1738656642449,-500.0,8.66e-05,2]
[351601792,1738656642459,-500.0,8.66e-05,2]
[351601794,1738656642473,-997.57,8.66e-05,2]
[351601796,1738656642483,-998.58,8.66e-05,2]
[351601798,1738656642492,-500.0,8.66e-05,2]
[351601800,1738656642501,-1234.63,8.66e-05,2]
[351601801,1738656642511,-500.0,8.66e-05,2]
[351601803,1738656642520,-1437.54,8.66e-05,2]
[351601805,1738656642529,-500.0,8.66e-05,2]
[351601807,1738656642539,-774.73,8.66e-05,2]
[351601810,1738656642549,-500.0,8.66e-05,2]
[351601812,1738656642558,-500.0,8.66e-05,2]
[351601814,1738656642569,-814.95,8.66e-05,2]
[351601815,1738656642578,-500.0,8.66e-05,2]
[351601817,1738656642587,-594.86,8.66e-05,2]
[351601819,1738656642596,-578.39,8.66e-05,2]
[351601821,1738656642605,-1066.87,8.66e-05,2]
[351601823,1738656642614,-678.1,8.66e-05,2]
[351601825,1738656642624,-500.0,8.66e-05,2]
[351601827,1738656642632,-500.0,8.66e-05,2]
[351601829,1738656642643,-763.65,8.66e-05,2]
[351601832,1738656642653,-500.0,8.66e-05,2]
[351601834,1738656642663,-1831.46,8.66e-05,2]
[351601836,1738656642673,-656.48,8.66e-05,2]
[351601838,1738656642682,-759.97,8.66e-05,2]
[351601840,1738656642692,-676.78,8.66e-05,2]
[351601842,1738656642701,-774.73,8.66e-05,2]
[351601844,1738656642714,-694.96,8.66e-05,2]
[351601846,1738656642723,-619.82,8.66e-05,2]
[351601848,1738656642733,-500.0,8.66e-05,2]
[351601850,1738656642743,-500.0,8.66e-05,2]
[351601853,1738656642752,-500.0,8.66e-05,2]
[351601856,1738656642765,-686.27,8.66e-05,2]
[351601858,1738656642775,-775.86,8.66e-05,2]
[351601860,1738656642784,-886.79,8.66e-05,2]
[351601862,1738656642793,-1089.44,8.66e-05,2]
[351601863,1738656642803,-838.71552334,8.66e-05,2]
[351601921,1738656643274,-499.97730652,8.66e-05,2]
[351601970,1738656643742,-11.28717014,8.66e-05,2]
[351601972,1738656643753,-500.0,8.66e-05,2]
[351601974,1738656643762,-193.91300408,8.66e-05,2]
[351601976,1738656643774,-394.04068009,8.66e-05,2]
[351601978,1738656643784,-805.05631583,8.66e-05,2]
[351601980,1738656643793,-541.89,8.66e-05,2]
[351601982,1738656643803,-500.0,8.66e-05,2]
[351601984,1738656643812,-500.0,8.66e-05,2]
[351601986,1738656643823,-500.0,8.66e-05,2]
[351601988,1738656643832,-500.0,8.66e-05,2]
[351601990,1738656643842,-500.0,8.66e-05,2]
[351601992,1738656643851,-548.21,8.66e-05,2]
[351601994,1738656643860,-500.0,8.66e-05,2]
[351601996,1738656643869,-863.23,8.66e-05,2]
[351601997,1738656643879,-757.05,8.66e-05,2]
[351602000,1738656643889,-512.52,8.66e-05,2]
[351602002,1738656643899,-500.0,8.66e-05,2]
[351602004,1738656643909,-930.54,8.66e-05,2]
[351602006,1738656643922,-868.67,8.66e-05,2]
[351602008,1738656643932,-500.0,8.66e-05,2]
[351602010,1738656643941,-500.0,8.66e-05,2]
[351602012,1738656643951,-500.0,8.66e-05,2]
[351602014,1738656643961,-1548.22,8.66e-05,2]
[351602016,1738656643973,-500.0,8.66e-05,2]
[351602018,1738656643983,-1144.45,8.66e-05,2]
[351602020,1738656643993,-500.0,8.66e-05,2]
[351602022,1738656644004,-500.0,8.66e-05,2]
[351602023,1738656644013,-690.41,8.66e-05,2]
[351602024,1738656644023,-500.0,8.661e-05,2]